fUST/lending_fUST_20250924
["ID","MTS","AMOUNT","RATE_DAILY","PERIOD"]
[387288023,1758679843940,-3758.41,0.00020547,2]
[387288024,1758679843950,-480.0,0.00020547,2]
[387288026,1758679843959,-480.0,0.00020547,2]
[387288028,1758679843968,-480.0,0.00020547,2]
[387288030,1758679843977,-480.0,0.00020547,2]
[387288033,1758679843987,-480.0,0.00020547,2]
[387288035,1758679843998,-168.0,0.00020547,2]
[387288036,1758679844007,-500.0,0.00020548,2]
[387288039,1758679844017,-151.9943785,0.00020585,2]
[387288040,1758679844027,-168.0,0.00020588,2]
[387288042,1758679844036,-187.18132043,0.0002062,2]
[387288044,1758679844045,-168.0,0.00020702,2]
[387288046,1758679844055,-4000.0,0.0002082,2]
[387288048,1758679844064,-480.0,0.00020821,2]
[387288050,1758679844076,-480.0,0.00020821,2]
[387288052,1758679844085,-480.0,0.00020821,2]
[387288065,1758679844198,-527.54,0.00020821,2]
[387288067,1758679844210,-480.0,0.00020821,2]
[387288069,1758679844220,-1526.07,0.00020821,2]
[387288071,1758679844230,-480.0,0.00020821,2]
[387288073,1758679844243,-480.0,0.00020821,2]
[387288075,1758679844254,-1423.72,0.00020821,2]
[387288077,1758679844263,-810.51,0.00020821,2]
[387288080,1758679844274,-849.57,0.00020821,2]
[387288082,1758679844287,-480.0,0.00020821,2]
[387288083,1758679844297,-491.96,0.00020821,2]
[387288085,1758679844307,-1257.63,0.00020821,2]
[387288087,1758679844316,-480.0,0.00020821,2]
[387288089,1758679844325,-480.0,0.00020821,2]
[387288091,1758679844334,-517.01,0.00020821,2]
[387288093,1758679844344,-480.0,0.00020821,2]
[387288095,1758679844353,-2834.64,0.00020821,2]
[387288097,1758679844362,-480.0,0.00020821,2]
[387288099,1758679844371,-480.0,0.00020821,2]
[387288101,1758679844381,-3758.41,0.00020821,2]
[387288103,1758679844390,-480.0,0.00020821,2]
[387288105,1758679844399,-294.07286027,0.00020821,2]
[387288107,1758679844409,-480.0,0.00020821,2]
[387288109,1758679844418,-480.0,0.00020821,2]
[387288111,1758679844426,-589.89612918,0.00020821,2]
[387288113,1758679844436,-500.0,0.00020822,2]
[387288115,1758679844446,-423.53528149,0.00020828,2]
[387288117,1758679844457,-1500.0,0.00020868,2]
[387288119,1758679844477,-1500.0,0.00020868,2]
[387288121,1758679844495,-1500.0,0.00020868,2]
[387288123,1758679844504,-1504.74586995,0.00020868,2]
[387288125,1758679844515,-1500.0,0.00020868,2]
[387288127,1758679844524,-1500.0,0.00020868,2]
[387288129,1758679844534,-420.0,0.00020899,2]
[387288131,1758679844543,-168.0,0.00020913,2]
[387288133,1758679844552,-168.0,0.00020949,2]
[387288135,1758679844561,-1287.28404005,0.00020972,2]
[387288137,1758679844570,-150.0,0.00021,2]
[387288139,1758679844579,-168.0,0.00021061,2]
[387288141,1758679844588,-165.7184018,0.0002107,2]
[387288143,1758679844598,-365.86182465,0.00021094,2]
[387288145,1758679844608,-4000.0,0.00021094,2]
[387288147,1758679844617,-480.0,0.00021095,2]
[387288149,1758679844626,-480.0,0.00021095,2]
[387288151,1758679844635,-480.0,0.00021095,2]
[387288153,1758679844644,-527.54,0.00021095,2]
[387288155,1758679844654,-480.0,0.00021095,2]
[387288157,1758679844663,-1526.07,0.00021095,2]
[387288159,1758679844672,-480.0,0.00021095,2]
[387288160,1758679844681,-480.0,0.00021095,2]
[387288161,1758679844690,-1423.72,0.00021095,2]
[387288162,1758679844701,-810.51,0.00021095,2]
[387288163,1758679844711,-849.57,0.00021095,2]
[387288164,1758679844720,-480.0,0.00021095,2]
[387288165,1758679844729,-491.96,0.00021095,2]
[387288166,1758679844738,-1257.63,0.00021095,2]
[387288167,1758679844748,-480.0,0.00021095,2]
[387288168,1758679844757,-480.0,0.00021095,2]
[387288169,1758679844766,-517.01,0.00021095,2]
[387288170,1758679844775,-480.0,0.00021095,2]
[387288171,1758679844785,-2834.64,0.00021095,2]
[387288172,1758679844793,-480.0,0.00021095,2]
[387288173,1758679844803,-480.0,0.00021095,2]
[387288174,1758679844811,-3758.41,0.00021095,2]
[387288175,1758679844821,-480.0,0.00021095,2]
[387288176,1758679844830,-480.0,0.00021095,2]
[387288177,1758679844839,-480.0,0.00021095,2]
[387288178,1758679844849,-500.0,0.00021096,2]
[387288179,1758679844857,-160.0,0.00021173,2]
[387288180,1758679844866,-160.0,0.00021173,2]
[387288181,1758679844875,-160.0,0.00021173,2]
[387288182,1758679844884,-160.0,0.00021173,2]
[387288183,1758679844893,-532.13844753,0.00021177,2]
[387288184,1758679844902,-189.588343,0.00021177,2]
[387288185,1758679844911,-233.58652103,0.00021177,2]
[387288186,1758679844919,-160.0,0.00021177,2]
[387288187,1758679844928,-160.0,0.00021177,2]
[387288188,1758679844938,-160.0,0.00021177,2]
[387288190,1758679844947,-168.0,0.00021207,2]
[387288192,1758679844960,-377.75589682,0.00021369,2]
[387288194,1758679844970,-480.0,0.00021369,2]
[387288196,1758679844979,-480.0,0.00021369,2]
[387288198,1758679844989,-527.54,0.00021369,2]
[387288200,1758679844999,-489.45,0.00021369,2]
[387288202,1758679845008,-1526.07,0.00021369,2]
[387288204,1758679845018,-480.0,0.00021369,2]
[387288206,1758679845028,-174.59895412,0.00021369,2]
[387288208,1758679845039,-1423.72,0.00021369,2]
[387288210,1758679845049,-810.51,0.00021369,2]
[387288212,1758679845058,-849.57,0.00021369,2]
[387288214,1758679845068,-480.0,0.00021369,2]
[387288216,1758679845078,-491.96,0.00021369,2]
[387288218,1758679845088,-1257.63,0.00021369,2]
[387288220,1758679845097,-480.0,0.00021369,2]
[387288222,1758679845106,-480.0,0.00021369,2]
[387288224,1758679845115,-517.01,0.00021369,2]
[387288226,1758679845124,-480.0,0.00021369,2]
[387288228,1758679845133,-2834.64,0.00021369,2]
[387288230,1758679845143,-480.0,0.00021369,2]
[387288232,1758679845152,-480.0,0.00021369,2]
[387288234,1758679845161,-3758.41,0.00021369,2]
[387288236,1758679845170,-480.0,0.00021369,2]
[387288238,1758679845179,-480.0,0.00021369,2]
[387288240,1758679845189,-480.0,0.00021369,2]
[387288242,1758679845198,-500.0,0.0002137,2]
[387288244,1758679845211,-2000.0,0.00021416,2]
[387288246,1758679845223,-1006.76359121,0.00021416,2]
[387288248,1758679845232,-509.01398251,0.00021416,2]
[387288250,1758679845242,-2011.85680603,0.00021416,2]
[387288252,1758679845251,-2000.0,0.00021416,2]
[387288253,1758679845261,-151.9943785,0.00021544,2]
[387288255,1758679845270,-541.91356962,0.00021568,2]
[387288257,1758679845279,-500.0,0.00021643,2]
[387288259,1758679845290,-500.0,0.00021643,2]
[387288261,1758679845300,-500.0,0.00021643,2]
[387288263,1758679845309,-500.0,0.00021643,2]
[387288265,1758679845318,-246.00716045,0.00021643,2]
[387288267,1758679845328,-480.0,0.00021643,2]
[387288269,1758679845337,-527.54,0.00021643,2]
[387288271,1758679845346,-1526.07,0.00021643,2]
[387288273,1758679845356,-480.0,0.00021643,2]
[387288275,1758679845365,-1423.72,0.00021643,2]
[387288277,1758679845375,-810.51,0.00021643,2]
[387288279,1758679845385,-849.57,0.00021643,2]
[387288281,1758679845394,-480.0,0.00021643,2]
[387288283,1758679845404,-491.96,0.00021643,2]
[387288285,1758679845413,-1257.63,0.00021643,2]
[387288287,1758679845422,-480.0,0.00021643,2]
[387288289,1758679845432,-480.0,0.00021643,2]
[387288291,1758679845441,-517.01,0.00021643,2]
[387288293,1758679845450,-480.0,0.00021643,2]
[387288295,1758679845460,-2834.64,0.00021643,2]
[387288297,1758679845469,-373.8064453,0.00021643,2]
[387288299,1758679845478,-480.0,0.00021643,2]
[387288301,1758679845487,-3758.41,0.00021643,2]
[387288303,1758679845497,-204.6268684,0.00021643,2]
[387288305,1758679845506,-480.0,0.00021643,2]
[387288308,1758679845515,-500.0,0.00021644,2]
[387288311,1758679845524,-502.75021354,0.0002165,2]
[387288314,1758679845533,-500.0,0.0002165,2]
[387288317,1758679845543,-501.24338984,0.00021664,2]
[387288319,1758679845552,-500.0,0.00021668,2]
[387288321,1758679845563,-500.0,0.00021668,2]
[387288323,1758679845572,-500.0,0.00021668,2]
[387288325,1758679845581,-502.30335504,0.00021673,2]
[387288327,1758679845591,-500.98096882,0.00021673,2]
[387288329,1758679845600,-593.38250071,0.00021673,2]
[387288331,1758679845610,-501.32584414,0.00021673,2]
[387288333,1758679845619,-501.74645979,0.00021673,2]
[387288335,1758679845628,-502.99266749,0.00021673,2]
[387288337,1758679845638,-534.62944828,0.00021673,2]
[387288339,1758679845647,-626.34630305,0.00021673,2]
[387288341,1758679845656,-502.46318132,0.00021673,2]
[387288343,1758679845665,-500.0,0.00021673,2]
[387288345,1758679845675,-501.86614559,0.00021673,2]
[387288347,1758679845685,-500.0,0.00021673,2]
[387288349,1758679845694,-500.0,0.00021673,2]
[387288351,1758679845703,-500.7962552,0.00021673,2]
[387288353,1758679845713,-500.0,0.00021673,2]
[387288355,1758679845722,-529.23636076,0.00021673,2]
[387288357,1758679845731,-500.0,0.00021673,2]
[387288359,1758679845740,-501.56478208,0.00021673,2]
[387288361,1758679845750,-500.0,0.00021673,2]
[387288363,1758679845759,-500.46489659,0.00021673,2]
[387288365,1758679845769,-502.51806416,0.00021673,2]
[387288367,1758679845777,-500.0,0.00021673,2]
[387288369,1758679845786,-160.0,0.00021696,2]
[387288371,1758679845796,-410.0,0.00021727,2]
[387288373,1758679845804,-480.0,0.00021917,2]
[387288375,1758679845814,-527.54,0.00021917,2]
[387288376,1758679845823,-500.0,0.00021917,2]
[387288379,1758679845833,-500.0,0.00021917,2]
[387288381,1758679845842,-500.0,0.00021917,2]
[387288383,1758679845851,-500.0,0.00021917,2]
[387288384,1758679845861,-500.0,0.00021917,2]
[387288386,1758679845870,-500.0,0.00021917,2]
[387288389,1758679845880,-602.79516554,0.00021917,2]
[387288391,1758679845889,-1526.07,0.00021917,2]
[387288393,1758679845899,-480.0,0.00021917,2]
[387288395,1758679845908,-1423.72,0.00021917,2]
[387288397,1758679845917,-810.51,0.00021917,2]
[387288399,1758679845928,-849.57,0.00021917,2]
[387288401,1758679845937,-480.0,0.00021917,2]
[387288403,1758679845946,-491.96,0.00021917,2]
[387288405,1758679845955,-1257.63,0.00021917,2]
[387288406,1758679845964,-480.0,0.00021917,2]
[387288408,1758679845973,-480.0,0.00021917,2]
[387288410,1758679845982,-517.01,0.00021917,2]
[387288412,1758679845992,-480.0,0.00021917,2]
[387288414,1758679846001,-2834.64,0.00021917,2]
[387288416,1758679846010,-480.0,0.00021917,2]
[387288418,1758679846019,-3758.41,0.00021917,2]
[387288420,1758679846028,-480.0,0.00021917,2]
[387288422,1758679846038,-500.0,0.00021918,2]
[387288424,1758679846047,-500.0,0.00021918,2]
[387288426,1758679846056,-2417.37120488,0.00021964,2]
[387288428,1758679846065,-1469.96886764,0.00021964,2]
[387288430,1758679846074,-160.0,0.00021986,3]
[387288432,1758679846083,-179.32,0.00022,2]
[387288434,1758679846093,-160.0,0.00022032,4]
[387288436,1758679846102,-1287.28404005,0.00022044,2]
[387288438,1758679846111,-160.0,0.00022079,5]
[387288440,1758679846120,-160.0,0.00022125,6]
[387288442,1758679846129,-160.0,0.00022171,7]
[387288444,1758679846138,-1000.0,0.00022191,2]
[387288446,1758679846147,-1000.0,0.00022191,2]
[387288448,1758679846157,-1000.0,0.00022191,2]
[387288450,1758679846167,-1001.0842112,0.00022191,2]
[387288452,1758679846176,-480.0,0.00022191,2]
[387288454,1758679846185,-527.54,0.00022191,2]
[387288456,1758679846194,-1526.07,0.00022191,2]
[387288458,1758679846204,-480.0,0.00022191,2]
[387288460,1758679846218,-1423.72,0.00022191,2]
[387288462,1758679846227,-810.51,0.00022191,2]
[387288464,1758679846238,-849.57,0.00022191,2]
[387288466,1758679846255,-480.0,0.00022191,2]
[387288468,1758679846264,-491.96,0.00022191,2]
[387288470,1758679846273,-1257.63,0.00022191,2]
[387288472,1758679846283,-480.0,0.00022191,2]
[387288474,1758679846293,-480.0,0.00022191,2]
[387288476,1758679846303,-517.01,0.00022191,2]
[387288478,1758679846312,-588.13127663,0.00022191,2]
[387288480,1758679846321,-2834.64,0.00022191,2]
[387288482,1758679846330,-422.35580901,0.00022191,2]
[387288484,1758679846339,-3758.41,0.00022191,2]
[387288486,1758679846348,-480.0,0.00022191,2]
[387288488,1758679846357,-500.0,0.00022192,2]
[387288490,1758679846366,-500.0,0.00022192,2]
[387288492,1758679846375,-617.12592652,0.00022198,2]
[387288493,1758679846388,-1004.4146554,0.00022216,2]
[387288495,1758679846397,-1000.0,0.00022216,2]
[387288497,1758679846406,-1000.0,0.00022216,2]
[387288499,1758679846416,-160.0,0.00022218,8]
[387288501,1758679846425,-1002.69098774,0.00022221,2]
[387288503,1758679846434,-1000.0,0.00022221,2]
[387288505,1758679846443,-1000.0,0.00022221,2]
[387288507,1758679846452,-1002.47168648,0.00022221,2]
[387288509,1758679846462,-1017.39969314,0.00022221,2]
[387288511,1758679846471,-1001.3981918,0.00022221,2]
[387288513,1758679846480,-1001.66012803,0.00022221,2]
[387288515,1758679846490,-260.0,0.00022244,2]
[387288517,1758679846499,-160.0,0.00022264,9]
[387288519,1758679846508,-207.56747621,0.00022264,5]
[387288521,1758679846517,-3398.9,0.00022326,2]
[387288532,1758679846598,-480.0,0.00022465,2]
[387288534,1758679846618,-527.54,0.00022465,2]
[387288536,1758679846627,-1526.07,0.00022465,2]
[387288538,1758679846637,-480.0,0.00022465,2]
[387288540,1758679846646,-1423.72,0.00022465,2]
[387288542,1758679846656,-810.51,0.00022465,2]
[387288544,1758679846665,-849.57,0.00022465,2]
[387288546,1758679846675,-480.0,0.00022465,2]
[387288548,1758679846685,-491.96,0.00022465,2]
[387288550,1758679846694,-1257.63,0.00022465,2]
[387288552,1758679846703,-480.0,0.00022465,2]
[387288554,1758679846712,-421.4244259,0.00022465,2]
[387288556,1758679846722,-517.01,0.00022465,2]
[387288558,1758679846731,-2834.64,0.00022465,2]
[387288559,1758679846740,-3758.41,0.00022465,2]
[387288561,1758679846750,-480.0,0.00022465,2]
[387288563,1758679846760,-500.0,0.00022466,2]
[387288565,1758679846770,-151.9943785,0.00022502,2]
[387288567,1758679846779,-500.0,0.00022691,2]
[387288569,1758679846788,-502.24535854,0.00022739,2]
[387288571,1758679846798,-1500.0,0.00022739,2]
[387288573,1758679846809,-505.37081843,0.00022739,2]
[387288575,1758679846818,-480.0,0.00022739,2]
[387288577,1758679846827,-527.54,0.00022739,2]
[387288580,1758679846838,-1526.07,0.00022739,2]
[387288582,1758679846847,-480.0,0.00022739,2]
[387288584,1758679846856,-1423.72,0.00022739,2]
[387288586,1758679846865,-810.51,0.00022739,2]
[387288588,1758679846874,-849.57,0.00022739,2]
[387288590,1758679846883,-480.0,0.00022739,2]
[387288591,1758679846893,-491.96,0.00022739,2]
[387288593,1758679846902,-1257.63,0.00022739,2]
[387288595,1758679846911,-480.0,0.00022739,2]
[387288597,1758679846921,-517.01,0.00022739,2]
[387288599,1758679846930,-2834.64,0.00022739,2]
[387288601,1758679846939,-3758.41,0.00022739,2]
[387288603,1758679846949,-480.0,0.00022739,2]
[387288605,1758679846959,-500.0,0.0002274,2]
[387288607,1758679846968,-1500.0,0.00022764,2]
[387288609,1758679846977,-1001.88138086,0.00022764,2]
[387288611,1758679846986,-1616.57080184,0.00022768,2]
[387288613,1758679846995,-1003.2480777,0.00022768,2]
[387288615,1758679847004,-587.0,0.00022776,2]
[387288617,1758679847013,-360.0,0.00022792,2]
[387288619,1758679847022,-153.0,0.00023,7]
[387288621,1758679847031,-179.32,0.00023,2]
[387288623,1758679847041,-179.65864857,0.00023005,2]
[387288625,1758679847049,-480.0,0.00023013,2]
[387288627,1758679847058,-527.54,0.00023013,2]
[387288629,1758679847069,-1526.07,0.00023013,2]
[387288631,1758679847078,-480.0,0.00023013,2]
[387288633,1758679847088,-1423.72,0.00023013,2]
[387288635,1758679847097,-810.51,0.00023013,2]
[387288637,1758679847106,-849.57,0.00023013,2]
[387288639,1758679847115,-480.0,0.00023013,2]
[387288641,1758679847124,-491.96,0.00023013,2]
[387288643,1758679847133,-1257.63,0.00023013,2]
[387288645,1758679847142,-480.0,0.00023013,2]
[387288647,1758679847151,-517.01,0.00023013,2]
[387288649,1758679847160,-2834.64,0.00023013,2]
[387288651,1758679847170,-3758.41,0.00023013,2]
[387288653,1758679847179,-480.0,0.00023013,2]
[387288655,1758679847189,-500.0,0.00023014,2]
[387288657,1758679847198,-505.2784977,0.00023058,2]
[387288659,1758679847210,-1287.28404005,0.00023116,2]
[387288661,1758679847220,-2000.0,0.00023287,2]
[387288663,1758679847229,-480.0,0.00023287,2]
[387288665,1758679847239,-527.54,0.00023287,2]
[387288666,1758679847251,-1526.07,0.00023287,2]
[387288667,1758679847260,-480.0,0.00023287,2]
[387288668,1758679847268,-1423.72,0.00023287,2]
[387288669,1758679847278,-810.51,0.00023287,2]
[387288670,1758679847287,-849.57,0.00023287,2]
[387288671,1758679847297,-589.65071563,0.00023287,2]
[387288672,1758679847306,-491.96,0.00023287,2]
[387288673,1758679847315,-1257.63,0.00023287,2]
[387288674,1758679847324,-480.0,0.00023287,2]
[387288675,1758679847333,-517.01,0.00023287,2]
[387288676,1758679847342,-2834.64,0.00023287,2]
[387288678,1758679847351,-1404.0,0.00023287,2]
[387288680,1758679847360,-3758.41,0.00023287,2]
[387288682,1758679847371,-480.0,0.00023287,2]
[387288684,1758679847380,-256.41399315,0.00023288,2]
[387288685,1758679847391,-892.19662923,0.00023312,2]
[387288687,1758679847400,-460.0,0.00023339,2]
[387288689,1758679847409,-151.9943785,0.00023461,2]
[387288691,1758679847419,-168.0,0.00023493,2]
[387288693,1758679847428,-78093.247242,0.0002356,2]
[387288695,1758679847438,-480.0,0.00023561,2]
[387288697,1758679847448,-527.54,0.00023561,2]
[387288699,1758679847457,-1526.07,0.00023561,2]
[387288701,1758679847467,-480.0,0.00023561,2]
[387288703,1758679847476,-1423.72,0.00023561,2]
[387288705,1758679847487,-810.51,0.00023561,2]
[387288707,1758679847496,-849.57,0.00023561,2]
[387288709,1758679847506,-491.96,0.00023561,2]
[387288711,1758679847515,-1257.63,0.00023561,2]
[387288713,1758679847525,-480.0,0.00023561,2]
[387288715,1758679847534,-517.01,0.00023561,2]
[387288717,1758679847543,-2834.64,0.00023561,2]
[387288719,1758679847553,-3758.41,0.00023561,2]
[387288721,1758679847563,-480.0,0.00023561,2]
[387288723,1758679847572,-150.0,0.00023573,2]
[387288725,1758679847582,-179.32,0.0002379,2]
[387288727,1758679847591,-151.0,0.000238,10]
[387288729,1758679847600,-1003.92049297,0.00023835,2]
[387288731,1758679847610,-480.0,0.00023835,2]
[387288733,1758679847620,-527.54,0.00023835,2]
[387288735,1758679847629,-1526.07,0.00023835,2]
[387288737,1758679847639,-480.0,0.00023835,2]
[387288739,1758679847648,-200.0,0.00023835,2]
[387288741,1758679847657,-200.0,0.00023835,2]
[387288743,1758679847668,-200.0,0.00023835,2]
[387288745,1758679847678,-200.0,0.00023835,2]
[387288747,1758679847687,-200.0,0.00023835,2]
[387288749,1758679847695,-200.0,0.00023835,2]
[387288751,1758679847705,-200.0,0.00023835,2]
[387288753,1758679847714,-200.0,0.00023835,2]
[387288755,1758679847723,-200.0,0.00023835,2]
[387288757,1758679847732,-200.0,0.00023835,2]
[387288759,1758679847742,-200.0,0.00023835,2]
[387288761,1758679847752,-200.0,0.00023835,2]
[387288763,1758679847761,-200.0,0.00023835,2]
[387288765,1758679847770,-200.0,0.00023835,2]
[387288767,1758679847779,-200.0,0.00023835,2]
[387288769,1758679847789,-200.0,0.00023835,2]
[387288771,1758679847799,-202.06873825,0.00023835,2]
[387288773,1758679847808,-1423.72,0.00023835,2]
[387288775,1758679847817,-810.51,0.00023835,2]
[387288777,1758679847827,-849.57,0.00023835,2]
[387288779,1758679847836,-491.96,0.00023835,2]
[387288781,1758679847846,-1257.63,0.00023835,2]
[387288783,1758679847855,-480.0,0.00023835,2]
[387288785,1758679847864,-517.01,0.00023835,2]
[387288787,1758679847873,-2834.64,0.00023835,2]
[387288789,1758679847883,-3758.41,0.00023835,2]
[387288791,1758679847893,-480.0,0.00023835,2]
[387288793,1758679847902,-560.0,0.00023887,2]
[387288795,1758679847912,-124449.70233189,0.000239,2]
[387288797,1758679847922,-224.262,0.00023911,5]
[387288799,1758679847931,-175.37473221,0.00023911,5]
[387288801,1758679847941,-417.15472785,0.00024,3]
[387288803,1758679847950,-328.24235073,0.00024,2]
[387288805,1758679847959,-480.0,0.00024109,2]
[387288807,1758679847969,-527.54,0.00024109,2]
[387288809,1758679847978,-1526.07,0.00024109,2]
[387288811,1758679847988,-480.0,0.00024109,2]
[387288813,1758679847997,-1423.72,0.00024109,2]
[387288815,1758679848008,-810.51,0.00024109,2]
[387288817,1758679848017,-849.57,0.00024109,2]
[387288819,1758679848027,-491.96,0.00024109,2]
[387288821,1758679848036,-1257.63,0.00024109,2]
[387288823,1758679848045,-320.98702333,0.00024109,2]
[387288825,1758679848055,-517.01,0.00024109,2]
[387288827,1758679848064,-2834.64,0.00024109,2]
[387288829,1758679848073,-3758.41,0.00024109,2]
[387288831,1758679848083,-480.0,0.00024109,2]
[387288833,1758679848092,-300.81962974,0.00024121,2]
[387288835,1758679848102,-5098.35,0.00024187,2]
[387288837,1758679848111,-1287.28404005,0.00024187,2]
[387288839,1758679848121,-151.0,0.000243,9]
[387288841,1758679848131,-177.6423019,0.00024366,2]
[387288843,1758679848140,-480.0,0.00024383,2]
[387288845,1758679848149,-527.54,0.00024383,2]
[387288847,1758679848159,-1526.07,0.00024383,2]
[387288849,1758679848168,-480.0,0.00024383,2]
[387288851,1758679848178,-1423.72,0.00024383,2]
[387288853,1758679848187,-810.51,0.00024383,2]
[387288855,1758679848197,-849.57,0.00024383,2]
[387288857,1758679848208,-491.96,0.00024383,2]
[387288859,1758679848219,-1257.63,0.00024383,2]
[387288860,1758679848232,-517.01,0.00024383,2]
[387288863,1758679848242,-2834.64,0.00024383,2]
[387288865,1758679848252,-3758.41,0.00024383,2]
[387288866,1758679848261,-480.0,0.00024383,2]
[387288868,1758679848270,-151.0,0.000244,8]
[387288870,1758679848280,-660.0,0.00024435,2]
[387288872,1758679848291,-480.0,0.00024657,2]
[387288874,1758679848301,-527.54,0.00024657,2]
[387288876,1758679848311,-1526.07,0.00024657,2]
[387288878,1758679848320,-382.38636518,0.00024657,2]
[387288880,1758679848330,-1423.72,0.00024657,2]
[387288882,1758679848339,-810.51,0.00024657,2]
[387288885,1758679848350,-849.57,0.00024657,2]
[387288887,1758679848360,-491.96,0.00024657,2]
[387288889,1758679848369,-1257.63,0.00024657,2]
[387288891,1758679848379,-517.01,0.00024657,2]
[387288893,1758679848388,-2834.64,0.00024657,2]
[387288895,1758679848398,-3758.41,0.00024657,2]
[387288897,1758679848408,-480.0,0.00024657,2]
[387288899,1758679848418,-165.77929404,0.00024658,2]
[387288901,1758679848427,-500.0,0.00024658,2]
[387288903,1758679848437,-179.32,0.00024685,2]
[387288905,1758679848447,-410.0,0.00024727,2]
[387288907,1758679848456,-2009.0,0.000248,2]
[387288909,1758679848465,-10971.9347526,0.000248,2]
[387288911,1758679848474,-823.0,0.00024821,2]
[387288913,1758679848484,-174.81825162,0.00024831,2]
[387288915,1758679848494,-304.15614381,0.00024899,2]
[387288917,1758679848503,-434402.694599,0.000249,2]
[387288918,1758679848513,-480.0,0.00024931,2]
[387288920,1758679848523,-527.54,0.00024931,2]
[387288923,1758679848533,-1526.07,0.00024931,2]
[387288925,1758679848542,-1423.72,0.00024931,2]
[387288927,1758679848551,-810.51,0.00024931,2]
[387288929,1758679848560,-849.57,0.00024931,2]
[387288931,1758679848570,-491.96,0.00024931,2]
[387288933,1758679848579,-1257.63,0.00024931,2]
[387288935,1758679848589,-517.01,0.00024931,2]
[387288937,1758679848598,-2834.64,0.00024931,2]
[387288939,1758679848608,-3758.41,0.00024931,2]
[387288941,1758679848617,-480.0,0.00024931,2]
[387288943,1758679848627,-500.0,0.00024932,2]
[387288944,1758679848636,-527.37087652,0.00024983,2]
[387288946,1758679848646,-417.15472785,0.00025,10]
[387288949,1758679848656,-173.84612634,0.00025,60]
[387288951,1758679848666,-1150.01833457,0.00025,2]
[387288953,1758679848676,-181.173298,0.00025,15]
[387288955,1758679848686,-731.46231684,0.00025195,2]
[387288957,1758679848696,-517.26,0.00025205,2]
[387288959,1758679848706,-527.54,0.00025205,2]
[387288961,1758679848715,-1526.07,0.00025205,2]
[387288963,1758679848725,-1423.72,0.00025205,2]
[387288965,1758679848736,-810.51,0.00025205,2]
[387288975,1758679848827,-849.57,0.00025205,2]
[387288978,1758679848837,-491.96,0.00025205,2]
[387288980,1758679848847,-1257.63,0.00025205,2]
[387288982,1758679848856,-517.01,0.00025205,2]
[387288984,1758679848866,-2834.64,0.00025205,2]
[387288986,1758679848875,-1404.0,0.00025205,4]
[387288988,1758679848885,-3758.41,0.00025205,2]
[387288990,1758679848895,-480.0,0.00025205,2]
[387288992,1758679848904,-500.0,0.00025206,2]
[387288994,1758679848914,-1287.28404005,0.00025259,3]
[387288996,1758679848923,-541.91356962,0.00025315,2]
[387288998,1758679848934,-510.26191285,0.00025469,3]
[387289000,1758679848943,-527.55383947,0.00025479,2]
[387289002,1758679848953,-1526.22018809,0.00025479,2]
[387289004,1758679848962,-1423.86142981,0.00025479,2]
[387289006,1758679848972,-810.55979276,0.00025479,2]
[387289008,1758679848981,-849.5778156,0.00025479,2]